[Event "Titled Tuesday Blitz March 28 Late 2023"]
[White "Minko, Dmitry"]
[Black "micke12a"]
[WhiteFideId "24188468"]
[WhiteElo "2147"]
[BlackElo "2324"]
[Result "0-1"]
[Round "08"]
[TimeControl "180+2"]
[Date "2023.03.28"]
[WhiteClock "0:00:01"]
[BlackClock "0:00:10"]

1. e4 {[%clk 0:02:59]}  c5 {[%clk 0:02:54]} 2. Nf3 {[%clk 0:02:59]}  d6 {[%clk 0:02:55]} 3. d4 {[%clk 0:03:00]}  cxd4 {[%clk 0:02:56]} 4. Nxd4 {[%clk 0:03:00]}  Nf6 {[%clk 0:02:56]} 5. Nc3 {[%clk 0:03:01]}  a6 {[%clk 0:02:57]} 6. Be3 {[%clk 0:03:01]}  e5 {[%clk 0:02:57]} 7. Nb3 {[%clk 0:03:01]}  Be7 {[%clk 0:02:57]} 8. f3 {[%clk 0:03:01]}  Be6 {[%clk 0:02:57]} 9. Qd2 {[%clk 0:03:02]}  h5 {[%clk 0:02:58]} 10. Nd5 {[%clk 0:03:00]}  Nxd5 {[%clk 0:02:56]} 11. exd5 {[%clk 0:03:00]}  Bf5 {[%clk 0:02:56]} 12. Na5 {[%clk 0:03:00]}  b6 {[%clk 0:02:55]} 13. Nc4 {[%clk 0:02:56]}  Nd7 {[%clk 0:02:55]} 14. Bd3 {[%clk 0:02:32]}  Bxd3 {[%clk 0:02:51]} 15. Qxd3 {[%clk 0:02:33]}  b5 {[%clk 0:02:48]} 16. Nd2 {[%clk 0:02:32]}  O-O {[%clk 0:02:42]} 17. O-O-O {[%clk 0:02:26]}  Rc8 {[%clk 0:02:42]} 18. g4 {[%clk 0:02:19]}  h4 {[%clk 0:02:41]} 19. Ne4 {[%clk 0:01:57]}  Qc7 {[%clk 0:02:16]} 20. Kb1 {[%clk 0:01:56]}  Nb6 {[%clk 0:02:12]} 21. Bxb6 {[%clk 0:01:52]}  Qxb6 {[%clk 0:02:11]} 22. g5 {[%clk 0:01:47]}  Rc4 {[%clk 0:02:04]} 23. Rhg1 {[%clk 0:01:29]}  Rfc8 {[%clk 0:02:01]} 24. c3 {[%clk 0:00:40]}  b4 {[%clk 0:01:56]} 25. b3 {[%clk 0:00:40]}  bxc3 {[%clk 0:01:51]} 26. Kc2 {[%clk 0:00:31]}  Rd4 {[%clk 0:01:45]} 27. Qe2 {[%clk 0:00:25]}  Qa5 {[%clk 0:01:36]} 28. a4 {[%clk 0:00:22]}  Qb4 {[%clk 0:01:34]} 29. Qxa6 {[%clk 0:00:20]}  Rb8 {[%clk 0:01:32]} 30. Rb1 {[%clk 0:00:14]}  Rb7 {[%clk 0:00:47]} 31. g6 {[%clk 0:00:12]}  f5 {[%clk 0:00:41]} 32. Nxc3 {[%clk 0:00:05]}  Rc7 {[%clk 0:00:28]} 33. Qa8+ {[%clk 0:00:04]}  Bf8 {[%clk 0:00:28]} 34. Qc6 {[%clk 0:00:03]}  Rxc6 {[%clk 0:00:27]} 35. dxc6 {[%clk 0:00:03]}  Qc5 {[%clk 0:00:22]} 36. Rgd1 {[%clk 0:00:03]}  Qxc6 {[%clk 0:00:22]} 37. Kb2 {[%clk 0:00:03]}  d5 {[%clk 0:00:19]} 38. Nb5 {[%clk 0:00:02]}  Rxd1 {[%clk 0:00:18]} 39. Rxd1 {[%clk 0:00:03]}  d4 {[%clk 0:00:16]} 40. f4 {[%clk 0:00:03]}  Qxg6 {[%clk 0:00:15]} 41. fxe5 {[%clk 0:00:03]}  Qg2+ {[%clk 0:00:15]} 42. Kb1 {[%clk 0:00:02]}  Qd5 {[%clk 0:00:15]} 43. Kc2 {[%clk 0:00:02]}  Qxe5 {[%clk 0:00:14]} 44. Rxd4 {[%clk 0:00:02]}  Qxh2+ {[%clk 0:00:13]} 45. Rd2 {[%clk 0:00:02]}  Qe5 {[%clk 0:00:11]} 46. Nd4 {[%clk 0:00:01]}  h3 {[%clk 0:00:10]} 0-1


[Site "https://www.chess.com"]

[Event "Titled Tuesday Blitz March 28 Late 2023"]
[White "Mazurkiewicz, Michal"]
[Black "sebastianmarinp"]
[WhiteFideId "1124943"]
[WhiteElo "2054"]
[BlackElo "2302"]
[Result "0-1"]
[Round "08"]
[TimeControl "180+2"]
[Date "2023.03.28"]
[WhiteClock "0:00:01"]
[BlackClock "0:00:19"]

1. e4 {[%clk 0:02:59]}  e5 {[%clk 0:02:58]} 2. Nf3 {[%clk 0:03:00]}  Nc6 {[%clk 0:02:58]} 3. Bb5 {[%clk 0:03:00]}  a6 {[%clk 0:02:58]} 4. Bxc6 {[%clk 0:03:00]}  dxc6 {[%clk 0:02:57]} 5. O-O {[%clk 0:03:01]}  Bg4 {[%clk 0:02:52]} 6. h3 {[%clk 0:03:01]}  Bh5 {[%clk 0:02:47]} 7. g4 {[%clk 0:02:59]}  Bg6 {[%clk 0:02:47]} 8. Nxe5 {[%clk 0:03:00]}  Nf6 {[%clk 0:02:44]} 9. d3 {[%clk 0:02:52]}  Qd4 {[%clk 0:02:27]} 10. Nf3 {[%clk 0:02:48]}  Qd7 {[%clk 0:02:24]} 11. Qe2 {[%clk 0:02:10]}  O-O-O {[%clk 0:01:55]} 12. Nbd2 {[%clk 0:02:10]}  h5 {[%clk 0:01:30]} 13. Ne5 {[%clk 0:02:03]}  Qe6 {[%clk 0:01:24]} 14. Nxg6 {[%clk 0:02:03]}  fxg6 {[%clk 0:01:23]} 15. g5 {[%clk 0:02:03]}  Nd5 {[%clk 0:01:05]} 16. Qf3 {[%clk 0:01:57]}  Nb4 {[%clk 0:01:05]} 17. Nc4 {[%clk 0:01:06]}  Nxc2 {[%clk 0:01:01]} 18. Rb1 {[%clk 0:01:06]}  Nd4 {[%clk 0:01:01]} 19. Qg2 {[%clk 0:01:06]}  Ne2+ {[%clk 0:00:53]} 20. Kh1 {[%clk 0:01:06]}  Rxd3 {[%clk 0:00:51]} 21. Ne3 {[%clk 0:00:56]}  Nf4 {[%clk 0:00:45]} 22. Qg3 {[%clk 0:00:41]}  Bd6 {[%clk 0:00:45]} 23. Qh2 {[%clk 0:00:04]}  Qxe4+ {[%clk 0:00:37]} 24. f3 {[%clk 0:00:02]}  Qe6 {[%clk 0:00:32]} 25. Ng2 {[%clk 0:00:02]}  Ne2 {[%clk 0:00:21]} 26. f4 {[%clk 0:00:02]}  Ng3+ {[%clk 0:00:19]} 27. Kg1 {[%clk 0:00:02]}  Bc5+ {[%clk 0:00:19]} 28. Ne3 {[%clk 0:00:01]}  Bxe3+ {[%clk 0:00:19]} 0-1


[Site "https://www.chess.com"]

[Event "Titled Tuesday Blitz March 28 Late 2023"]
[White "Dubreuil, Julien"]
[Black "Senthilkumar, Pranav"]
[WhiteFideId "621285"]
[BlackFideId "2083477"]
[WhiteElo "2291"]
[BlackElo "1860"]
[Result "0-1"]
[Round "08"]
[TimeControl "180+2"]
[Date "2023.03.28"]
[WhiteClock "0:00:02"]
[BlackClock "0:00:09"]

1. e4 {[%clk 0:03:00]}  c5 {[%clk 0:03:00]} 2. Nf3 {[%clk 0:03:00]}  Nc6 {[%clk 0:02:56]} 3. b4 {[%clk 0:03:00]}  cxb4 {[%clk 0:02:54]} 4. d4 {[%clk 0:03:00]}  d6 {[%clk 0:02:35]} 5. d5 {[%clk 0:02:59]}  Ne5 {[%clk 0:02:36]} 6. Bb2 {[%clk 0:02:56]}  Nxf3+ {[%clk 0:02:35]} 7. Qxf3 {[%clk 0:02:57]}  Nf6 {[%clk 0:02:35]} 8. a3 {[%clk 0:02:45]}  g6 {[%clk 0:02:25]} 9. Bb5+ {[%clk 0:02:35]}  Bd7 {[%clk 0:02:24]} 10. Bxd7+ {[%clk 0:02:34]}  Qxd7 {[%clk 0:02:24]} 11. axb4 {[%clk 0:02:15]}  Bg7 {[%clk 0:02:22]} 12. O-O {[%clk 0:02:12]}  O-O {[%clk 0:02:19]} 13. Nd2 {[%clk 0:02:11]}  a6 {[%clk 0:02:09]} 14. c4 {[%clk 0:02:09]}  Rac8 {[%clk 0:02:08]} 15. Qb3 {[%clk 0:01:59]}  b5 {[%clk 0:02:02]} 16. Bxf6 {[%clk 0:01:50]}  Bxf6 {[%clk 0:02:00]} 17. Rxa6 {[%clk 0:01:50]}  bxc4 {[%clk 0:02:00]} 18. Nxc4 {[%clk 0:01:51]}  Qb5 {[%clk 0:01:59]} 19. Rc6 {[%clk 0:01:41]}  Rxc6 {[%clk 0:01:59]} 20. dxc6 {[%clk 0:01:42]}  Qxc6 {[%clk 0:01:59]} 21. b5 {[%clk 0:01:40]}  Qxe4 {[%clk 0:01:59]} 22. b6 {[%clk 0:01:36]}  Rb8 {[%clk 0:01:56]} 23. Rb1 {[%clk 0:01:33]}  Bd4 {[%clk 0:01:33]} 24. b7 {[%clk 0:01:32]}  Qe2 {[%clk 0:01:09]} 25. Ne3 {[%clk 0:01:25]}  Bxe3 {[%clk 0:01:03]} 26. fxe3 {[%clk 0:01:19]}  Qa6 {[%clk 0:01:01]} 27. h3 {[%clk 0:01:14]}  e6 {[%clk 0:01:01]} 28. Kh2 {[%clk 0:01:12]}  d5 {[%clk 0:01:01]} 29. Qb4 {[%clk 0:01:08]}  Qc6 {[%clk 0:00:58]} 30. Qe7 {[%clk 0:01:06]}  Kg7 {[%clk 0:00:50]} 31. Rf1 {[%clk 0:01:05]}  Qe8 {[%clk 0:00:38]} 32. Qf6+ {[%clk 0:01:04]}  Kg8 {[%clk 0:00:37]} 33. Rb1 {[%clk 0:01:02]}  Qd7 {[%clk 0:00:37]} 34. Qb2 {[%clk 0:00:45]}  Qd6+ {[%clk 0:00:37]} 35. Kh1 {[%clk 0:00:45]}  e5 {[%clk 0:00:37]} 36. Qb5 {[%clk 0:00:42]}  d4 {[%clk 0:00:34]} 37. exd4 {[%clk 0:00:42]}  exd4 {[%clk 0:00:35]} 38. Rc1 {[%clk 0:00:42]}  d3 {[%clk 0:00:27]} 39. Rc6 {[%clk 0:00:40]}  Qd8 {[%clk 0:00:16]} 40. Rc1 {[%clk 0:00:16]}  d2 {[%clk 0:00:13]} 41. Rd1 {[%clk 0:00:16]}  Qc7 {[%clk 0:00:13]} 42. Qd3 {[%clk 0:00:15]}  Rxb7 {[%clk 0:00:11]} 43. Qxd2 {[%clk 0:00:15]}  Qe5 {[%clk 0:00:09]} 44. Qd8+ {[%clk 0:00:14]}  Kg7 {[%clk 0:00:10]} 45. Qd4 {[%clk 0:00:14]}  Qxd4 {[%clk 0:00:11]} 46. Rxd4 {[%clk 0:00:15]}  Rb1+ {[%clk 0:00:11]} 47. Kh2 {[%clk 0:00:15]}  Re1 {[%clk 0:00:12]} 48. h4 {[%clk 0:00:15]}  h5 {[%clk 0:00:12]} 49. Kh3 {[%clk 0:00:15]}  Re3+ {[%clk 0:00:13]} 50. g3 {[%clk 0:00:16]}  Re6 {[%clk 0:00:14]} 51. Rf4 {[%clk 0:00:16]}  Rf6 {[%clk 0:00:14]} 52. Rd4 {[%clk 0:00:16]}  Rf5 {[%clk 0:00:14]} 53. g4 {[%clk 0:00:15]}  Rf3+ {[%clk 0:00:13]} 54. Kg2 {[%clk 0:00:16]}  hxg4 {[%clk 0:00:13]} 55. Rxg4 {[%clk 0:00:16]}  Ra3 {[%clk 0:00:14]} 56. Rb4 {[%clk 0:00:15]}  Ra2+ {[%clk 0:00:14]} 57. Kg3 {[%clk 0:00:15]}  Ra3+ {[%clk 0:00:14]} 58. Kg4 {[%clk 0:00:15]}  Kh6 {[%clk 0:00:14]} 59. Rc4 {[%clk 0:00:11]}  f5+ {[%clk 0:00:14]} 60. Kf4 {[%clk 0:00:09]}  Kh5 {[%clk 0:00:14]} 61. Ke5 {[%clk 0:00:09]}  Re3+ {[%clk 0:00:09]} 62. Kf6 {[%clk 0:00:09]}  Re4 {[%clk 0:00:09]} 63. Rc8 {[%clk 0:00:08]}  Kxh4 {[%clk 0:00:09]} 64. Rh8+ {[%clk 0:00:07]}  Kg3 {[%clk 0:00:08]} 65. Rg8 {[%clk 0:00:07]}  f4 {[%clk 0:00:07]} 66. Rxg6+ {[%clk 0:00:07]}  Kf2 {[%clk 0:00:07]} 67. Kf5 {[%clk 0:00:07]}  Ra4 {[%clk 0:00:07]} 68. Rb6 {[%clk 0:00:07]}  f3 {[%clk 0:00:07]} 69. Rb2+ {[%clk 0:00:05]}  Kg1 {[%clk 0:00:07]} 70. Rb1+ {[%clk 0:00:03]}  Kg2 {[%clk 0:00:07]} 71. Rb4 {[%clk 0:00:02]}  f2 {[%clk 0:00:07]} 72. Rxa4 {[%clk 0:00:02]}  f1=Q+ {[%clk 0:00:08]} 73. Rf4 {[%clk 0:00:02]}  Qb1+ {[%clk 0:00:07]} 74. Kg5 {[%clk 0:00:02]}  Kg3 {[%clk 0:00:08]} 75. Rg4+ {[%clk 0:00:02]}  Kf3 {[%clk 0:00:08]} 76. Rf4+ {[%clk 0:00:02]}  Ke3 {[%clk 0:00:09]} 0-1


[Site "https://www.chess.com"]

[Event "Titled Tuesday Blitz March 28 Late 2023"]
[White "Fernandez Sanchez, Mario Andres"]
[Black "Hoffmann, Asa"]
[WhiteFideId "6501621"]
[BlackFideId "2001470"]
[WhiteElo "2050"]
[BlackElo "2117"]
[Result "1-0"]
[Round "08"]
[TimeControl "180+2"]
[Date "2023.03.28"]
[WhiteClock "0:01:12"]
[BlackClock "0:01:02"]

1. d4 {[%clk 0:03:00]}  Nf6 {[%clk 0:02:57]} 2. Bf4 {[%clk 0:03:01]}  d6 {[%clk 0:02:53]} 3. Nc3 {[%clk 0:03:00]}  c6 {[%clk 0:02:52]} 4. e4 {[%clk 0:03:00]}  b5 {[%clk 0:02:47]} 5. f3 {[%clk 0:02:59]}  a6 {[%clk 0:02:46]} 6. Qd2 {[%clk 0:02:59]}  Qc7 {[%clk 0:02:45]} 7. O-O-O {[%clk 0:02:59]}  Nbd7 {[%clk 0:02:44]} 8. h4 {[%clk 0:02:58]}  e5 {[%clk 0:02:43]} 9. Be3 {[%clk 0:02:53]}  Bb7 {[%clk 0:02:43]} 10. h5 {[%clk 0:02:51]}  h6 {[%clk 0:02:42]} 11. Nge2 {[%clk 0:02:45]}  Be7 {[%clk 0:02:42]} 12. g4 {[%clk 0:02:43]}  Nb6 {[%clk 0:02:38]} 13. Ng3 {[%clk 0:02:41]}  Bc8 {[%clk 0:02:31]} 14. dxe5 {[%clk 0:02:34]}  dxe5 {[%clk 0:02:31]} 15. Rg1 {[%clk 0:02:24]}  Be6 {[%clk 0:02:30]} 16. Nf5 {[%clk 0:02:23]}  Bxf5 {[%clk 0:02:30]} 17. gxf5 {[%clk 0:02:24]}  Rd8 {[%clk 0:02:27]} 18. Qf2 {[%clk 0:02:23]}  Rxd1+ {[%clk 0:02:25]} 19. Nxd1 {[%clk 0:02:24]}  Nbd7 {[%clk 0:02:19]} 20. Rxg7 {[%clk 0:02:22]}  Nxh5 {[%clk 0:02:18]} 21. Rg1 {[%clk 0:02:10]}  Nf4 {[%clk 0:02:17]} 22. Nc3 {[%clk 0:01:58]}  Qa5 {[%clk 0:02:10]} 23. Kb1 {[%clk 0:01:58]}  Bg5 {[%clk 0:02:03]} 24. Ne2 {[%clk 0:01:48]}  f6 {[%clk 0:01:47]} 25. Nxf4 {[%clk 0:01:45]}  Bxf4 {[%clk 0:01:40]} 26. Bxf4 {[%clk 0:01:44]}  exf4 {[%clk 0:01:40]} 27. Bd3 {[%clk 0:01:40]}  Ne5 {[%clk 0:01:38]} 28. Qa7 {[%clk 0:01:39]}  Qd8 {[%clk 0:01:19]} 29. Rg7 {[%clk 0:01:25]}  Nd7 {[%clk 0:01:10]} 30. a4 {[%clk 0:01:18]}  h5 {[%clk 0:01:08]} 31. axb5 {[%clk 0:01:16]}  axb5 {[%clk 0:01:08]} 32. Qa2 {[%clk 0:01:13]}  Rf8 {[%clk 0:01:02]} 33. Qe6+ {[%clk 0:01:12]} 1-0


[Site "https://www.chess.com"]

[Event "Titled Tuesday Blitz March 28 Late 2023"]
[White "Rottenwohrer Suarez, Juan"]
[Black "OKEKE, Isaac Chukwudalu"]
[WhiteFideId "32068182"]
[BlackFideId "8508526"]
[WhiteElo "2174"]
[BlackElo "2161"]
[Result "0-1"]
[Round "08"]
[TimeControl "180+2"]
[Date "2023.03.28"]
[WhiteClock "0:00:02"]
[BlackClock "0:00:10"]

1. e4 {[%clk 0:03:00]}  c5 {[%clk 0:02:59]} 2. Nf3 {[%clk 0:03:00]}  d6 {[%clk 0:02:59]} 3. d4 {[%clk 0:02:57]}  cxd4 {[%clk 0:03:00]} 4. Nxd4 {[%clk 0:02:57]}  Nf6 {[%clk 0:03:00]} 5. Nc3 {[%clk 0:02:57]}  a6 {[%clk 0:03:00]} 6. Be3 {[%clk 0:02:58]}  e5 {[%clk 0:03:00]} 7. Nb3 {[%clk 0:02:54]}  Be7 {[%clk 0:03:00]} 8. Be2 {[%clk 0:02:52]}  Be6 {[%clk 0:03:00]} 9. O-O {[%clk 0:02:52]}  O-O {[%clk 0:02:59]} 10. f4 {[%clk 0:02:47]}  exf4 {[%clk 0:02:59]} 11. Rxf4 {[%clk 0:02:48]}  Nc6 {[%clk 0:02:58]} 12. Nd5 {[%clk 0:02:26]}  Rc8 {[%clk 0:02:35]} 13. Bb6 {[%clk 0:02:15]}  Nxd5 {[%clk 0:01:42]} 14. Bxd8 {[%clk 0:01:34]}  Nxf4 {[%clk 0:01:41]} 15. Bxe7 {[%clk 0:01:11]}  Nxe7 {[%clk 0:01:18]} 16. Bf3 {[%clk 0:01:07]}  Rfd8 {[%clk 0:00:58]} 17. Nd4 {[%clk 0:01:03]}  Bd7 {[%clk 0:00:51]} 18. Qd2 {[%clk 0:00:59]}  Nfg6 {[%clk 0:00:45]} 19. Rd1 {[%clk 0:00:54]}  Ne5 {[%clk 0:00:44]} 20. Be2 {[%clk 0:00:51]}  g6 {[%clk 0:00:41]} 21. h3 {[%clk 0:00:51]}  Rc7 {[%clk 0:00:37]} 22. c3 {[%clk 0:00:51]}  Kg7 {[%clk 0:00:33]} 23. Nf3 {[%clk 0:00:51]}  Nxf3+ {[%clk 0:00:31]} 24. Bxf3 {[%clk 0:00:50]}  Be6 {[%clk 0:00:29]} 25. Qd4+ {[%clk 0:00:45]}  Kg8 {[%clk 0:00:29]} 26. Qf6 {[%clk 0:00:46]}  Rdd7 {[%clk 0:00:27]} 27. h4 {[%clk 0:00:42]}  h5 {[%clk 0:00:24]} 28. Qg5 {[%clk 0:00:42]}  Rc5 {[%clk 0:00:21]} 29. Qf4 {[%clk 0:00:38]}  Rc6 {[%clk 0:00:16]} 30. Qe3 {[%clk 0:00:31]}  Rc5 {[%clk 0:00:15]} 31. Kh2 {[%clk 0:00:23]}  Re5 {[%clk 0:00:14]} 32. Qa7 {[%clk 0:00:19]}  Kg7 {[%clk 0:00:12]} 33. Qb8 {[%clk 0:00:18]}  Nc6 {[%clk 0:00:13]} 34. Qa8 {[%clk 0:00:13]}  Bxa2 {[%clk 0:00:13]} 35. Re1 {[%clk 0:00:03]}  Rde7 {[%clk 0:00:12]} 36. Qc8 {[%clk 0:00:02]}  Bd5 {[%clk 0:00:10]} 0-1


[Site "https://www.chess.com"]

[Event "Titled Tuesday Blitz March 28 Late 2023"]
[White "Romkachess"]
[Black "Kohler, Aran"]
[BlackFideId "1002856"]
[WhiteElo "2505"]
[BlackElo "2309"]
[Result "1-0"]
[Round "08"]
[TimeControl "180+2"]
[Date "2023.03.28"]
[WhiteClock "0:00:07"]
[BlackClock "0:00:11"]

1. e4 {[%clk 0:03:00]}  c6 {[%clk 0:02:56]} 2. d4 {[%clk 0:02:57]}  d5 {[%clk 0:02:54]} 3. Nc3 {[%clk 0:02:57]}  dxe4 {[%clk 0:02:54]} 4. Nxe4 {[%clk 0:02:58]}  Bf5 {[%clk 0:02:53]} 5. Ng3 {[%clk 0:02:59]}  Bg6 {[%clk 0:02:54]} 6. Nh3 {[%clk 0:03:00]}  e6 {[%clk 0:02:53]} 7. Nf4 {[%clk 0:02:59]}  Nd7 {[%clk 0:02:52]} 8. h4 {[%clk 0:02:59]}  Ngf6 {[%clk 0:02:31]} 9. h5 {[%clk 0:02:59]}  Bf5 {[%clk 0:02:31]} 10. Nxf5 {[%clk 0:02:58]}  Qa5+ {[%clk 0:02:28]} 11. Bd2 {[%clk 0:02:58]}  Qxf5 {[%clk 0:02:27]} 12. Bd3 {[%clk 0:02:59]}  Qg4 {[%clk 0:02:22]} 13. Qxg4 {[%clk 0:02:53]}  Nxg4 {[%clk 0:02:21]} 14. f3 {[%clk 0:02:54]}  Ngf6 {[%clk 0:02:20]} 15. g4 {[%clk 0:02:54]}  Nd5 {[%clk 0:02:19]} 16. c4 {[%clk 0:02:47]}  Nxf4 {[%clk 0:02:17]} 17. Bxf4 {[%clk 0:02:47]}  Bb4+ {[%clk 0:02:18]} 18. Ke2 {[%clk 0:02:46]}  O-O-O {[%clk 0:02:14]} 19. Rad1 {[%clk 0:02:43]}  h6 {[%clk 0:02:04]} 20. a3 {[%clk 0:02:40]}  Be7 {[%clk 0:02:02]} 21. d5 {[%clk 0:01:53]}  e5 {[%clk 0:01:27]} 22. Be3 {[%clk 0:01:50]}  c5 {[%clk 0:01:20]} 23. Bf5 {[%clk 0:01:41]}  Bd6 {[%clk 0:01:17]} 24. b4 {[%clk 0:01:36]}  b6 {[%clk 0:01:17]} 25. Rb1 {[%clk 0:01:17]}  Kc7 {[%clk 0:01:14]} 26. Rb3 {[%clk 0:01:15]}  Rb8 {[%clk 0:00:58]} 27. Rhb1 {[%clk 0:00:54]}  Nf6 {[%clk 0:00:50]} 28. Kd3 {[%clk 0:00:35]}  Rhe8 {[%clk 0:00:47]} 29. Be4 {[%clk 0:00:32]}  Nd7 {[%clk 0:00:40]} 30. Bf5 {[%clk 0:00:32]}  Nf6 {[%clk 0:00:39]} 31. Bf2 {[%clk 0:00:31]}  Rg8 {[%clk 0:00:21]} 32. Bh4 {[%clk 0:00:18]}  Nd7 {[%clk 0:00:20]} 33. Be4 {[%clk 0:00:14]}  g6 {[%clk 0:00:19]} 34. hxg6 {[%clk 0:00:13]}  fxg6 {[%clk 0:00:19]} 35. Bf2 {[%clk 0:00:13]}  Nf6 {[%clk 0:00:19]} 36. bxc5 {[%clk 0:00:13]}  bxc5 {[%clk 0:00:17]} 37. Rxb8 {[%clk 0:00:13]}  Rxb8 {[%clk 0:00:14]} 38. Rxb8 {[%clk 0:00:13]}  Nxe4 {[%clk 0:00:13]} 39. Kxe4 {[%clk 0:00:07]}  Kxb8 {[%clk 0:00:13]} 40. Bg3 {[%clk 0:00:07]}  Kc8 {[%clk 0:00:12]} 41. Bxe5 {[%clk 0:00:07]}  Be7 {[%clk 0:00:11]} 42. Bf4 {[%clk 0:00:07]}  h5 {[%clk 0:00:09]} 43. gxh5 {[%clk 0:00:08]}  gxh5 {[%clk 0:00:10]} 44. Kf5 {[%clk 0:00:08]}  Kd7 {[%clk 0:00:10]} 45. Kg6 {[%clk 0:00:08]}  h4 {[%clk 0:00:10]} 46. Kh5 {[%clk 0:00:04]}  h3 {[%clk 0:00:10]} 47. Kg4 {[%clk 0:00:03]}  Bd6 {[%clk 0:00:10]} 48. Bxd6 {[%clk 0:00:03]}  Kxd6 {[%clk 0:00:09]} 49. Kxh3 {[%clk 0:00:03]}  Ke5 {[%clk 0:00:09]} 50. Kg4 {[%clk 0:00:03]}  Kd4 {[%clk 0:00:09]} 51. d6 {[%clk 0:00:04]}  Kxc4 {[%clk 0:00:10]} 52. d7 {[%clk 0:00:05]}  Kb3 {[%clk 0:00:11]} 53. d8=Q {[%clk 0:00:06]}  c4 {[%clk 0:00:11]} 54. Qa5 {[%clk 0:00:06]}  c3 {[%clk 0:00:11]} 55. Qxa7 {[%clk 0:00:07]}  c2 {[%clk 0:00:11]} 56. Qc5 {[%clk 0:00:07]} 1-0


[Site "https://www.chess.com"]

[Event "Titled Tuesday Blitz March 28 Late 2023"]
[White "Santos Flores, Alberto"]
[Black "Sarkar, Justin"]
[WhiteFideId "3601234"]
[BlackFideId "2010011"]
[WhiteElo "2235"]
[BlackElo "2189"]
[Result "1-0"]
[Round "08"]
[TimeControl "180+2"]
[Date "2023.03.28"]
[WhiteClock "0:02:44"]
[BlackClock "0:00:04"]

1. e4 {[%clk 0:02:56]}  c5 {[%clk 0:02:40]} 2. Nf3 {[%clk 0:02:55]}  Nc6 {[%clk 0:02:40]} 3. d4 {[%clk 0:02:54]}  cxd4 {[%clk 0:02:40]} 4. Nxd4 {[%clk 0:02:55]}  g6 {[%clk 0:02:40]} 5. Nc3 {[%clk 0:02:55]}  Bg7 {[%clk 0:02:40]} 6. Be3 {[%clk 0:02:56]}  Nf6 {[%clk 0:02:39]} 7. Bc4 {[%clk 0:02:57]}  O-O {[%clk 0:02:39]} 8. Bb3 {[%clk 0:02:57]}  d6 {[%clk 0:02:38]} 9. f3 {[%clk 0:02:57]}  Nxd4 {[%clk 0:02:36]} 10. Bxd4 {[%clk 0:02:57]}  Be6 {[%clk 0:02:36]} 11. Qd2 {[%clk 0:02:57]}  Qa5 {[%clk 0:02:28]} 12. O-O-O {[%clk 0:02:57]}  Rfc8 {[%clk 0:02:23]} 13. Kb1 {[%clk 0:02:57]}  b5 {[%clk 0:02:18]} 14. h4 {[%clk 0:02:56]}  b4 {[%clk 0:02:08]} 15. Nd5 {[%clk 0:02:55]}  Nxd5 {[%clk 0:02:02]} 16. exd5 {[%clk 0:02:52]}  Bxd5 {[%clk 0:01:47]} 17. Bxg7 {[%clk 0:02:52]}  Bxb3 {[%clk 0:01:46]} 18. axb3 {[%clk 0:02:50]}  Kxg7 {[%clk 0:01:45]} 19. h5 {[%clk 0:02:50]}  g5 {[%clk 0:01:28]} 20. h6+ {[%clk 0:02:49]}  Kh8 {[%clk 0:01:23]} 21. Rhe1 {[%clk 0:02:46]}  Rc7 {[%clk 0:00:10]} 22. Re4 {[%clk 0:02:45]}  Rac8 {[%clk 0:00:07]} 23. Rde1 {[%clk 0:02:44]}  Rxc2 {[%clk 0:00:04]} 24. Rxe7 {[%clk 0:02:44]} 1-0


[Site "https://www.chess.com"]

[Event "Titled Tuesday Blitz March 28 Late 2023"]
[White "Palacio,Igor Da Paz"]
[Black "Vedder, Richard"]
[WhiteFideId "2121140"]
[BlackFideId "1004166"]
[WhiteElo "2126"]
[BlackElo "2168"]
[Result "0-1"]
[Round "08"]
[TimeControl "180+2"]
[Date "2023.03.28"]
[WhiteClock "0:00:55"]
[BlackClock "0:01:57"]

1. e4 {[%clk 0:03:00]}  e5 {[%clk 0:02:59]} 2. Nf3 {[%clk 0:03:00]}  Nc6 {[%clk 0:02:59]} 3. c3 {[%clk 0:02:59]}  Nf6 {[%clk 0:02:58]} 4. Qa4 {[%clk 0:02:58]}  Be7 {[%clk 0:02:48]} 5. d4 {[%clk 0:02:56]}  exd4 {[%clk 0:02:48]} 6. cxd4 {[%clk 0:02:56]}  d5 {[%clk 0:02:49]} 7. e5 {[%clk 0:02:55]}  Ne4 {[%clk 0:02:49]} 8. Bb5 {[%clk 0:02:48]}  Bd7 {[%clk 0:02:44]} 9. Nc3 {[%clk 0:02:46]}  Nxc3 {[%clk 0:02:43]} 10. bxc3 {[%clk 0:02:46]}  O-O {[%clk 0:02:44]} 11. Qd1 {[%clk 0:02:40]}  Nxe5 {[%clk 0:02:39]} 12. Nxe5 {[%clk 0:02:35]}  Bxb5 {[%clk 0:02:39]} 13. Rb1 {[%clk 0:02:34]}  Ba6 {[%clk 0:02:38]} 14. Nd3 {[%clk 0:02:21]}  Bd6 {[%clk 0:02:33]} 15. O-O {[%clk 0:01:53]}  Qh4 {[%clk 0:02:33]} 16. f4 {[%clk 0:01:52]}  Rfe8 {[%clk 0:02:29]} 17. g3 {[%clk 0:01:43]}  Qh3 {[%clk 0:02:27]} 18. Rb2 {[%clk 0:01:25]}  Re4 {[%clk 0:02:26]} 19. Re2 {[%clk 0:01:20]}  Rae8 {[%clk 0:02:26]} 20. Rfe1 {[%clk 0:01:14]}  Qf5 {[%clk 0:02:11]} 21. Rxe4 {[%clk 0:01:09]}  Rxe4 {[%clk 0:02:07]} 22. Nf2 {[%clk 0:00:59]}  Rxe1+ {[%clk 0:02:01]} 23. Qxe1 {[%clk 0:01:00]}  Qe6 {[%clk 0:02:01]} 24. Bd2 {[%clk 0:00:54]}  Qxe1+ {[%clk 0:01:58]} 25. Bxe1 {[%clk 0:00:55]}  Bc4 {[%clk 0:01:57]} 0-1


[Site "https://www.chess.com"]